fUST/lending_fUST_20241025
["ID","MTS","AMOUNT","RATE_DAILY","PERIOD"]
[340806085,1729860640520,-500.0,0.00013698,2]
[340806086,1729860640530,-500.0,0.00013698,2]
[340806087,1729860640542,-509.23,0.00013698,2]
[340806088,1729860640553,-584.23590176,0.00013698,2]
[340806089,1729860640564,-984.77,0.00013698,2]
[340806090,1729860640574,-500.0,0.00013698,2]
[340806091,1729860640583,-676.73,0.00013698,2]
[340806092,1729860640593,-500.0,0.00013698,2]
[340806093,1729860640602,-670.75,0.00013698,2]
[340806094,1729860640612,-473.24779596,0.00013698,2]
[340806095,1729860640622,-500.0,0.00013698,2]
[340806096,1729860640632,-500.0,0.00013698,2]
[340806097,1729860640642,-628.41,0.00013698,2]
[340806098,1729860640652,-857.33,0.00013698,2]
[340806099,1729860640661,-500.0,0.00013698,2]
[340806100,1729860640671,-596.02,0.00013698,2]
[340806101,1729860640680,-500.0,0.00013698,2]
[340806102,1729860640690,-500.0,0.00013698,2]
[340806103,1729860640699,-500.0,0.00013698,2]
[340806104,1729860640708,-500.0,0.00013698,2]
[340806105,1729860640717,-575.0,0.00013698,2]
[340806106,1729860640727,-500.0,0.00013698,2]
[340806107,1729860640737,-165.6519427,0.00013698,2]
[340806108,1729860640747,-500.0,0.00013698,2]
[340806109,1729860640757,-500.0,0.00013698,2]
[340806110,1729860640766,-556.91880282,0.00013698,2]
[340806111,1729860640776,-1831.62,0.00013698,2]
[340806112,1729860640786,-500.0,0.00013698,2]
[340806113,1729860640795,-1101.63,0.00013698,2]
[340806114,1729860640804,-516.57,0.00013698,2]
[340806115,1729860640814,-546.16,0.00013698,2]
[340806116,1729860640824,-569.47,0.00013698,2]
[340806117,1729860640834,-500.0,0.00013698,2]
[340806118,1729860640847,-529.31,0.00013698,2]
[340806119,1729860640858,-500.0,0.00013698,2]
[340806120,1729860640867,-628.61,0.00013698,2]
[340806121,1729860640879,-500.0,0.00013698,2]
[340806122,1729860640888,-497.85515958,0.00013698,2]
[340806123,1729860640897,-562.98,0.00013698,2]
[340806124,1729860640907,-500.0,0.00013698,2]
[340806125,1729860640918,-866.1,0.00013698,2]
[340806126,1729860640929,-500.0,0.00013698,2]
[340806127,1729860640939,-1035.71,0.00013698,2]
[340806128,1729860640948,-938.97,0.00013698,2]
[340806129,1729860640958,-500.0,0.00013698,2]
[340806130,1729860640967,-1054.21,0.00013698,2]
[340806131,1729860640976,-500.0,0.00013698,2]
[340806132,1729860640987,-521.92,0.00013698,2]
[340806133,1729860640996,-221.10657769,0.00013698,2]
[340806134,1729860641006,-2081.81,0.00013698,2]
[340806135,1729860641016,-734.22,0.00013698,2]
[340806136,1729860641026,-1887.58,0.00013698,2]
[340806137,1729860641036,-500.0,0.00013698,2]
[340806138,1729860641046,-823.58,0.00013698,2]
[340806139,1729860641056,-508.65,0.00013698,2]
[340806140,1729860641066,-1725.51,0.00013698,2]
[340806141,1729860641082,-500.0,0.00013698,2]
[340806142,1729860641091,-1397.61,0.00013698,2]
[340806143,1729860641101,-500.0,0.00013698,2]
[340806144,1729860641112,-1070.32,0.00013698,2]
[340806145,1729860641122,-997.54,0.00013698,2]
[340806146,1729860641132,-512.51,0.00013698,2]
[340806147,1729860641144,-500.0,0.00013698,2]
[340806148,1729860641154,-500.0,0.00013698,2]
[340806149,1729860641164,-823.33,0.00013698,2]
[340806150,1729860641174,-500.0,0.00013698,2]
[340806151,1729860641185,-500.0,0.00013698,2]
[340806152,1729860641196,-500.0,0.00013698,2]
[340806153,1729860641206,-550.14,0.00013698,2]
[340806154,1729860641218,-1011.77,0.00013698,2]
[340806155,1729860641227,-520.3,0.00013698,2]
[340806156,1729860641237,-500.0,0.00013698,2]
[340806157,1729860641247,-574.84,0.00013698,2]
[340806158,1729860641257,-1109.02,0.00013698,2]
[340806159,1729860641266,-1278.705562,0.00013698,2]
[340806160,1729860641276,-1278.705562,0.00013698,2]
[340806161,1729860641285,-500.0,0.00013698,2]
[340806162,1729860641294,-151.0,0.00013698,2]
[340806163,1729860641305,-706.73,0.00013698,2]
[340806164,1729860641317,-1039.47,0.00013698,2]
[340806165,1729860641329,-151.0,0.00013698,2]
[340806166,1729860641339,-151.0,0.00013698,2]
[340806167,1729860641349,-500.0,0.00013698,2]
[340806168,1729860641361,-1168.87,0.00013698,2]
[340806169,1729860641371,-643.05,0.00013698,2]
[340806170,1729860641380,-500.0,0.00013698,2]
[340806171,1729860641389,-736.4,0.00013698,2]
[340806172,1729860641398,-500.0,0.00013698,2]
[340806173,1729860641407,-500.0,0.00013698,2]
[340806174,1729860641419,-634.76,0.00013698,2]
[340806175,1729860641430,-616.28,0.00013698,2]
[340806176,1729860641440,-500.0,0.00013698,2]
[340806177,1729860641450,-204.697177,0.00013698,2]
[340806178,1729860641460,-204.697177,0.00013698,2]
[340806179,1729860641470,-500.0,0.00013698,2]
[340806180,1729860641479,-500.0,0.00013698,2]
[340806181,1729860641489,-1817.74,0.00013698,2]
[340806182,1729860641498,-676.29,0.00013698,2]
[340806183,1729860641508,-151.0,0.00013698,2]
[340806184,1729860641517,-1353.11,0.00013698,2]
[340806185,1729860641527,-500.0,0.00013698,2]
[340806186,1729860641538,-500.0,0.00013698,2]
[340806187,1729860641548,-500.0,0.00013698,2]
[340806188,1729860641557,-500.0,0.00013698,2]
[340806189,1729860641566,-877.34,0.00013698,2]
[340806190,1729860641576,-532.86,0.00013698,2]
[340806191,1729860641586,-704.19,0.00013698,2]
[340806192,1729860641598,-1431.99,0.00013698,2]
[340806193,1729860641609,-234.1004,0.00013698,2]
[340806194,1729860641619,-1010.76,0.00013698,2]
[340806195,1729860641630,-234.1004,0.00013698,2]
[340806196,1729860641640,-508.89288883,0.00013698,2]
[340806197,1729860641649,-802.52,0.00013698,2]
[340806198,1729860641660,-1634.87,0.00013698,2]
[340806199,1729860641670,-500.0,0.00013698,2]
[340806200,1729860641680,-699.3,0.00013698,2]
[340806201,1729860641689,-151.0,0.00013698,2]
[340806202,1729860641699,-500.0,0.00013698,2]
[340806203,1729860641709,-421.732314,0.00013698,2]
[340806204,1729860641718,-500.0,0.00013698,2]
[340806205,1729860641729,-619.79,0.00013698,2]
[340806206,1729860641739,-421.732314,0.00013698,2]
[340806207,1729860641750,-500.0,0.00013698,2]
[340806208,1729860641759,-500.0,0.00013698,2]
[340806209,1729860641769,-430.65144825,0.00013698,2]
[340806210,1729860641778,-151.0,0.00013698,2]
[340806211,1729860641788,-636.58,0.00013698,2]
[340806212,1729860641798,-768.77,0.00013698,2]
[340806213,1729860641807,-679.66,0.00013698,2]
[340806214,1729860641817,-151.0,0.00013698,2]
[340806215,1729860641831,-22078.13,0.00013698,2]
[340806216,1729860641844,-885.88,0.00013698,2]
[340806217,1729860641854,-500.0,0.00013698,2]
[340806218,1729860641863,-151.0,0.00013698,2]
[340806219,1729860641873,-832.62,0.00013698,2]
[340806220,1729860641882,-1144.94,0.00013698,2]
[340806221,1729860641892,-829.9,0.00013698,2]
[340806222,1729860641902,-915.73,0.00013698,2]
[340806223,1729860641911,-500.0,0.00013698,2]
[340806224,1729860641921,-618.53,0.00013698,2]
[340806225,1729860641930,-3675.0,0.00013698,2]
[340806226,1729860641940,-500.0,0.00013698,2]
[340806227,1729860641950,-500.0,0.00013698,2]
[340806228,1729860641959,-3679.67,0.00013698,2]
[340806229,1729860641969,-500.0,0.00013698,2]
[340806230,1729860641978,-151.0,0.00013698,2]
[340806231,1729860641988,-3562.7,0.00013698,2]
[340806232,1729860641998,-500.0,0.00013698,2]
[340806233,1729860642007,-1132.68,0.00013698,2]
[340806234,1729860642017,-539.62,0.00013698,2]
[340806235,1729860642027,-500.0,0.00013698,2]
[340806236,1729860642036,-610.78,0.00013698,2]
[340806237,1729860642046,-500.0,0.00013698,2]
[340806238,1729860642057,-515.731322,0.00013698,2]
[340806239,1729860642066,-500.0,0.00013698,2]
[340806240,1729860642077,-500.0,0.00013698,2]
[340806241,1729860642087,-300.0,0.00013698,2]
[340806242,1729860642096,-500.0,0.00013698,2]
[340806243,1729860642106,-1630.31,0.00013698,2]
[340806244,1729860642116,-926.69,0.00013698,2]
[340806245,1729860642126,-405.55871076,0.00013698,2]
[340806246,1729860642135,-250.0,0.00013698,2]
[340806247,1729860642145,-515.731322,0.00013698,2]
[340806248,1729860642154,-1045.92,0.00013698,2]
[340806249,1729860642164,-151.0,0.00013698,2]
[340806250,1729860642173,-151.0,0.00013698,2]
[340806251,1729860642183,-151.0,0.00013698,2]
[340806252,1729860642192,-500.0,0.00013698,2]
[340806253,1729860642201,-1313.9,0.00013698,2]
[340806254,1729860642211,-151.0,0.00013698,2]
[340806255,1729860642220,-500.0,0.00013698,2]
[340806256,1729860642229,-532.14,0.00013698,2]
[340806257,1729860642239,-500.0,0.00013698,2]
[340806258,1729860642249,-500.0,0.00013698,2]
[340806259,1729860642259,-500.0,0.00013698,2]
[340806260,1729860642269,-1484.1,0.00013698,2]
[340806261,1729860642278,-1498.76,0.00013698,2]
[340806262,1729860642288,-251.085127,0.00013698,2]
[340806263,1729860642298,-500.0,0.00013698,2]
[340806264,1729860642309,-251.085127,0.00013698,2]
[340806265,1729860642320,-500.0,0.00013698,2]
[340806266,1729860642334,-500.0,0.00013698,2]
[340806267,1729860642344,-933.72,0.00013698,2]
[340806268,1729860642355,-500.0,0.00013698,2]
[340806269,1729860642364,-500.0,0.00013698,2]
[340806270,1729860642374,-669.36,0.00013698,2]
[340806271,1729860642384,-240.83292,0.00013698,2]
[340806272,1729860642394,-600.3559158,0.00013698,2]
[340806273,1729860642405,-714.7,0.00013698,2]
[340806274,1729860642415,-733.87,0.00013698,2]
[340806275,1729860642427,-500.0,0.00013698,2]
[340806276,1729860642437,-240.83292,0.00013698,2]
[340806277,1729860642447,-247.999507,0.00013698,2]
[340806278,1729860642458,-247.999507,0.00013698,2]
[340806279,1729860642468,-5553.78,0.00013698,2]
[340806280,1729860642478,-500.0,0.00013698,2]
[340806281,1729860642488,-151.0,0.00013698,2]
[340806282,1729860642497,-500.0,0.00013698,2]
[340806283,1729860642507,-151.0,0.00013698,2]
[340806284,1729860642516,-500.0,0.00013698,2]
[340806285,1729860642526,-500.0,0.00013698,2]
[340806286,1729860642536,-500.0,0.00013698,2]
[340806287,1729860642546,-996.15,0.00013698,2]
[340806288,1729860642555,-500.0,0.00013698,2]
[340806289,1729860642566,-151.0,0.00013698,2]
[340806290,1729860642576,-2271.04,0.00013698,2]
[340806291,1729860642589,-10977.84,0.00013698,2]
[340806292,1729860642599,-500.0,0.00013698,2]
[340806293,1729860642609,-813.38,0.00013698,2]
[340806294,1729860642619,-500.0,0.00013698,2]
[340806295,1729860642631,-622.26,0.00013698,2]
[340806296,1729860642643,-500.0,0.00013698,2]
[340806298,1729860642655,-1062.52,0.00013698,2]
[340806299,1729860642665,-4014.21,0.00013698,2]
[340806301,1729860642675,-727.59,0.00013698,2]
[340806303,1729860642684,-500.0,0.00013698,2]
[340806304,1729860642694,-500.0,0.00013698,2]
[340806305,1729860642703,-715.225027,0.00013698,2]
[340806306,1729860642713,-500.0,0.00013698,2]
[340806307,1729860642722,-644.97,0.00013698,2]
[340806308,1729860642732,-665.16,0.00013698,2]
[340806309,1729860642742,-1320.09,0.00013698,2]
[340806310,1729860642752,-174.035703,0.00013698,2]
[340806311,1729860642762,-715.225027,0.00013698,2]
[340806312,1729860642771,-174.035703,0.00013698,2]
[340806313,1729860642781,-500.0,0.00013698,2]
[340806314,1729860642790,-419.880228,0.00013698,2]
[340806315,1729860642801,-500.0,0.00013698,2]
[340806316,1729860642811,-419.880228,0.00013698,2]
[340806317,1729860642820,-726.72,0.00013698,2]
[340806318,1729860642831,-598.45,0.00013698,2]
[340806319,1729860642846,-1033.17,0.00013698,2]
[340806320,1729860642857,-500.0,0.00013698,2]
[340806321,1729860642867,-152.67342,0.00013698,2]
[340806322,1729860642877,-3181.69,0.00013698,2]
[340806323,1729860642886,-6747.09,0.00013698,2]
[340806325,1729860642895,-152.67342,0.00013698,2]
[340806326,1729860642905,-1219.310042,0.00013698,2]
[340806327,1729860642915,-1219.310042,0.00013698,2]
[340806328,1729860642924,-500.0,0.00013698,2]
[340806329,1729860642933,-500.0,0.00013698,2]
[340806330,1729860642943,-3134.57,0.00013698,2]
[340806331,1729860642953,-851.32,0.00013698,2]
[340806332,1729860642963,-1644.86,0.00013698,2]
[340806333,1729860642972,-500.0,0.00013698,2]
[340806334,1729860642981,-674.71,0.00013698,2]
[340806336,1729860642991,-500.0,0.00013698,2]
[340806337,1729860643001,-602.8,0.00013698,2]
[340806338,1729860643010,-2975.45,0.00013698,2]
[340806339,1729860643020,-158.046537,0.00013698,2]
[340806340,1729860643030,-3378.86,0.00013698,2]
[340806341,1729860643039,-151.0,0.00013698,2]
[340806342,1729860643049,-1224.17,0.00013698,2]
[340806343,1729860643059,-256.575884,0.00013698,2]
[340806344,1729860643068,-829.43,0.00013698,2]
[340806345,1729860643078,-797.87,0.00013698,2]
[340806346,1729860643087,-500.0,0.00013698,2]
[340806347,1729860643097,-585.65,0.00013698,2]
[340806348,1729860643106,-227.085088,0.00013698,2]
[340806349,1729860643116,-227.085088,0.00013698,2]
[340806350,1729860643126,-500.0,0.00013698,2]
[340806351,1729860643135,-1000.89,0.00013698,2]
[340806352,1729860643145,-500.0,0.00013698,2]
[340806353,1729860643155,-227.085088,0.00013698,2]
[340806354,1729860643164,-227.085088,0.00013698,2]
[340806355,1729860643173,-910.68,0.00013698,2]
[340806356,1729860643183,-669.44,0.00013698,2]
[340806357,1729860643193,-188.159192,0.00013698,2]
[340806358,1729860643203,-500.0,0.00013698,2]
[340806359,1729860643213,-1217.679311,0.00013699,2]
[340806360,1729860643223,-6105.337922,0.00013699,2]
[340806362,1729860643232,-334.413104,0.00013699,2]
[340806363,1729860643242,-334.413104,0.00013699,2]
[340806364,1729860643251,-249.224442,0.00013699,2]
[340806365,1729860643262,-249.224442,0.00013699,2]
[340806366,1729860643271,-151.0,0.00013699,2]
[340806367,1729860643281,-151.0,0.00013699,2]
[340806368,1729860643290,-151.0,0.00013699,2]
[340806369,1729860643301,-484.448552,0.00013699,2]
[340806370,1729860643310,-484.448552,0.00013699,2]
[340806371,1729860643320,-150.0,0.00013768,2]
[340806372,1729860643329,-150.112233,0.000139,2]
[340806373,1729860643339,-150.112233,0.000139,2]
[340806374,1729860643349,-223.696785,0.000139,2]
[340806375,1729860643358,-169.777553,0.00013906,2]
[340806376,1729860643367,-227.085088,0.00013911,2]
[340806377,1729860643377,-227.085088,0.00013911,2]
[340806378,1729860643386,-20444.5077703,0.00013911,2]
[340806379,1729860643395,-29902.8649604,0.00013911,2]
[340806380,1729860643405,-151.0,0.00013918,2]
[340806381,1729860643415,-151.0,0.00013918,2]
[340806382,1729860643425,-163.23582,0.00013918,2]
[340806383,1729860643435,-197.514711,0.00013918,2]
[340806384,1729860643445,-197.514711,0.00013918,2]
[340806385,1729860643454,-151.0,0.00013918,2]
[340806386,1729860643464,-151.0,0.00013918,2]
[340806387,1729860643474,-151.0,0.00013918,2]
[340806388,1729860643484,-150.01,0.00013921,2]
[340806389,1729860643494,-6433.6194802,0.00013921,2]
[340806390,1729860643504,-151.0,0.00013931,2]
[340806391,1729860643514,-334.413104,0.00013931,2]
[340806392,1729860643524,-334.413104,0.00013931,2]
[340806393,1729860643534,-249.224442,0.00013931,2]
[340806394,1729860643543,-249.224442,0.00013931,2]
[340806395,1729860643554,-151.0,0.00013931,2]
[340806396,1729860643564,-1278.705562,0.00013931,2]
[340806397,1729860643574,-151.0,0.00013931,2]
[340806398,1729860643584,-1278.705562,0.00013931,2]
[340806399,1729860643594,-151.0,0.00013931,2]
[340806400,1729860643604,-234.636598,0.00013931,2]
[340806401,1729860643615,-151.0,0.00013931,2]
[340806402,1729860643625,-484.448552,0.00013931,2]
[340806403,1729860643635,-204.697177,0.00013931,2]
[340806404,1729860643646,-484.448552,0.00013931,2]
[340806405,1729860643656,-204.697177,0.00013931,2]
[340806406,1729860643666,-234.1004,0.00013931,2]
[340806407,1729860643676,-234.1004,0.00013931,2]
[340806408,1729860643687,-151.0,0.00013931,2]
[340806409,1729860643697,-421.732314,0.00013931,2]
[340806410,1729860643708,-421.732314,0.00013931,2]
[340806411,1729860643718,-254.264818,0.00013931,2]
[340806412,1729860643924,-151.0,0.00013931,2]
[340806413,1729860643934,-151.0,0.00013931,2]
[340806414,1729860643944,-151.0,0.00013931,2]
[340806415,1729860643954,-151.0,0.00013931,2]
[340806416,1729860643964,-151.0,0.00013931,2]
[340806417,1729860643974,-174.035703,0.00013931,2]
[340806418,1729860643983,-174.035703,0.00013931,2]
[340806419,1729860643994,-419.880228,0.00013931,2]
[340806420,1729860644004,-419.880228,0.00013931,2]
[340806421,1729860644014,-152.67342,0.00013931,2]
[340806422,1729860644026,-152.67342,0.00013931,2]
[340806423,1729860644037,-1219.310042,0.00013931,2]
[340806424,1729860644046,-1219.310042,0.00013931,2]
[340806425,1729860644056,-151.0,0.00013931,2]
[340806426,1729860644066,-188.159192,0.00013931,2]
[340806427,1729860644075,-20444.5077703,0.00013932,2]
[340806428,1729860644086,-29902.8649604,0.00013932,2]
[340806429,1729860644095,-227.085088,0.00013933,2]
[340806430,1729860644105,-227.085088,0.00013933,2]
[340806431,1729860644115,-509.332659,0.00013938,2]
[340806432,1729860644125,-278.365468,0.00013941,2]
[340806433,1729860644135,-151.0,0.00013941,2]
[340806434,1729860644145,-515.731322,0.00013941,2]
[340806435,1729860644156,-515.731322,0.00013941,2]
[340806436,1729860644165,-151.0,0.00013941,2]
[340806437,1729860644175,-151.0,0.00013941,2]
[340806438,1729860644186,-151.0,0.00013941,2]
[340806439,1729860644196,-151.0,0.00013941,2]
[340806440,1729860644207,-251.085127,0.00013941,2]
[340806441,1729860644217,-251.085127,0.00013941,2]
[340806442,1729860644227,-240.83292,0.00013941,2]
[340806443,1729860644238,-240.83292,0.00013941,2]
[340806444,1729860644248,-247.999507,0.00013941,2]
[340806445,1729860644258,-247.999507,0.00013941,2]
[340806446,1729860644269,-715.225027,0.00013941,2]
[340806447,1729860644280,-715.225027,0.00013941,2]
[340806448,1729860644290,-154.162139,0.00013942,2]
[340806449,1729860644300,-151.0,0.00013942,2]
[340806450,1729860644311,-197.514711,0.00013942,2]
[340806451,1729860644322,-197.514711,0.00013942,2]
[340806452,1729860644333,-151.0,0.00013942,2]
[340806453,1729860644344,-230.488287,0.00013942,2]
[340806454,1729860644355,-151.0,0.00013942,2]
[340806455,1729860644366,-781.51045,0.00013942,2]
[340806456,1729860644376,-20444.5077703,0.00013942,2]
[340806457,1729860644386,-20444.5077703,0.00013952,2]
[340806458,1729860644396,-237.692225,0.00013952,2]
[340806459,1729860644406,-151.0,0.00013952,2]
[340806460,1729860644416,-197.514711,0.00013952,2]
[340806461,1729860644425,-197.514711,0.00013952,2]
[340806462,1729860644436,-151.0,0.00013952,2]
[340806463,1729860644446,-334.413104,0.00013952,2]
[340806464,1729860644457,-334.413104,0.00013952,2]
[340806465,1729860644467,-334.413104,0.00013952,2]
[340806466,1729860644478,-334.413104,0.00013952,2]
[340806467,1729860644488,-249.224442,0.00013952,2]
[340806468,1729860644498,-249.224442,0.00013952,2]
[340806469,1729860644509,-249.224442,0.00013952,2]
[340806470,1729860644519,-249.224442,0.00013952,2]
[340806471,1729860644528,-151.0,0.00013952,2]
[340806472,1729860644537,-151.0,0.00013952,2]
[340806473,1729860644547,-1278.705562,0.00013952,2]
[340806474,1729860644557,-1278.705562,0.00013952,2]
[340806475,1729860644568,-151.0,0.00013952,2]
[340806476,1729860644580,-151.0,0.00013952,2]
[340806477,1729860644589,-1278.705562,0.00013952,2]
[340806478,1729860644599,-1278.705562,0.00013952,2]
[340806479,1729860644608,-151.0,0.00013952,2]
[340806480,1729860644618,-151.0,0.00013952,2]
[340806481,1729860644629,-267.105953,0.00013952,2]
[340806482,1729860644640,-151.0,0.00013952,2]
[340806483,1729860644650,-484.448552,0.00013952,2]
[340806484,1729860644660,-484.448552,0.00013952,2]
[340806485,1729860644671,-204.697177,0.00013952,2]
[340806486,1729860644681,-204.697177,0.00013952,2]
[340806487,1729860644691,-484.448552,0.00013952,2]
[340806488,1729860644700,-484.448552,0.00013952,2]
[340806489,1729860644710,-204.697177,0.00013952,2]
[340806490,1729860644720,-204.697177,0.00013952,2]
[340806491,1729860644731,-781.51045,0.00013952,2]
[340806492,1729860644741,-234.1004,0.00013952,2]
[340806493,1729860644751,-234.1004,0.00013952,2]
[340806494,1729860644761,-151.0,0.00013952,2]
[340806495,1729860644771,-421.732314,0.00013952,2]
[340806496,1729860644781,-421.732314,0.00013952,2]
[340806497,1729860644793,-151.0,0.00013952,2]
[340806498,1729860644804,-151.0,0.00013952,2]
[340806499,1729860644814,-151.0,0.00013952,2]
[340806500,1729860644823,-515.731322,0.00013952,2]
[340806501,1729860644834,-515.731322,0.00013952,2]
[340806502,1729860644845,-151.0,0.00013952,2]
[340806503,1729860644856,-151.0,0.00013952,2]
[340806504,1729860644867,-151.0,0.00013952,2]
[340806505,1729860644877,-151.0,0.00013952,2]
[340806506,1729860644888,-251.085127,0.00013952,2]
[340806507,1729860644899,-251.085127,0.00013952,2]
[340806508,1729860644909,-240.83292,0.00013952,2]
[340806509,1729860644920,-240.83292,0.00013952,2]
[340806510,1729860644931,-247.999507,0.00013952,2]
[340806511,1729860644941,-247.999507,0.00013952,2]
[340806512,1729860644951,-151.0,0.00013952,2]
[340806513,1729860644962,-151.0,0.00013952,2]
[340806514,1729860644972,-224.441056,0.00013952,2]
[340806515,1729860644983,-715.225027,0.00013952,2]
[340806516,1729860644993,-174.035703,0.00013952,2]
[340806517,1729860645004,-715.225027,0.00013952,2]
[340806518,1729860645014,-174.035703,0.00013952,2]
[340806519,1729860645024,-419.880228,0.00013952,2]
[340806520,1729860645034,-419.880228,0.00013952,2]
[340806521,1729860645044,-152.67342,0.00013952,2]
[340806522,1729860645055,-152.67342,0.00013952,2]
[340806523,1729860645065,-1219.310042,0.00013952,2]
[340806524,1729860645075,-1219.310042,0.00013952,2]
[340806525,1729860645085,-151.0,0.00013952,2]
[340806526,1729860645095,-227.085088,0.00013952,2]
[340806527,1729860645105,-227.085088,0.00013952,2]
[340806528,1729860645115,-188.159192,0.00013952,2]
[340806529,1729860645126,-151.0,0.00013962,2]
[340806530,1729860645137,-151.0,0.00013962,2]
[340806531,1729860645147,-197.514711,0.00013962,2]
[340806532,1729860645156,-197.514711,0.00013962,2]
[340806533,1729860645167,-197.514711,0.00013962,2]
[340806534,1729860645177,-197.514711,0.00013962,2]
[340806535,1729860645187,-334.413104,0.00013962,2]
[340806536,1729860645198,-334.413104,0.00013962,2]
[340806537,1729860645208,-249.224442,0.00013962,2]
[340806538,1729860645220,-249.224442,0.00013962,2]
[340806539,1729860645230,-151.0,0.00013962,2]
[340806540,1729860645241,-1278.705562,0.00013962,2]
[340806541,1729860645251,-151.0,0.00013962,2]
[340806542,1729860645261,-1278.705562,0.00013962,2]
[340806543,1729860645271,-151.0,0.00013962,2]
[340806544,1729860645283,-484.448552,0.00013962,2]
[340806545,1729860645293,-204.697177,0.00013962,2]
[340806546,1729860645303,-484.448552,0.00013962,2]
[340806547,1729860645313,-204.697177,0.00013962,2]
[340806548,1729860645323,-234.1004,0.00013962,2]
[340806549,1729860645335,-234.1004,0.00013962,2]
[340806550,1729860645346,-151.0,0.00013962,2]
[340806551,1729860645356,-421.732314,0.00013962,2]
[340806552,1729860645366,-421.732314,0.00013962,2]
[340806553,1729860645376,-151.0,0.00013962,2]
[340806554,1729860645385,-151.0,0.00013962,2]
[340806555,1729860645395,-151.0,0.00013962,2]
[340806556,1729860645405,-515.731322,0.00013962,2]
[340806557,1729860645415,-515.731322,0.00013962,2]
[340806558,1729860645424,-151.0,0.00013962,2]
[340806559,1729860645434,-151.0,0.00013962,2]
[340806560,1729860645444,-151.0,0.00013962,2]
[340806561,1729860645454,-151.0,0.00013962,2]
[340806562,1729860645464,-251.085127,0.00013962,2]
[340806563,1729860645474,-251.085127,0.00013962,2]
[340806564,1729860645484,-240.83292,0.00013962,2]
[340806565,1729860645493,-240.83292,0.00013962,2]
[340806566,1729860645504,-247.999507,0.00013962,2]
[340806567,1729860645514,-247.999507,0.00013962,2]
[340806568,1729860645524,-151.0,0.00013962,2]
[340806569,1729860645534,-151.0,0.00013962,2]
[340806570,1729860645545,-715.225027,0.00013962,2]
[340806571,1729860645554,-174.035703,0.00013962,2]
[340806572,1729860645564,-715.225027,0.00013962,2]
[340806573,1729860645574,-174.035703,0.00013962,2]
[340806574,1729860645585,-419.880228,0.00013962,2]
[340806575,1729860645595,-419.880228,0.00013962,2]
[340806576,1729860645606,-152.67342,0.00013962,2]
[340806577,1729860645616,-152.67342,0.00013962,2]
[340806578,1729860645627,-1219.310042,0.00013962,2]
[340806579,1729860645641,-1219.310042,0.00013962,2]
[340806580,1729860645652,-151.0,0.00013962,2]
[340806581,1729860645662,-188.159192,0.00013962,2]
[340806582,1729860645673,-14066.96778015,0.00013962,2]
[340806597,1729860646278,-500.0,0.00013698,2]
[340806598,1729860646288,-188.159192,0.00013698,2]
[340806599,1729860646298,-500.0,0.00013698,2]
[340806600,1729860646308,-137.140808,0.00013698,2]
[340806601,1729860724085,154.175,0.00011,2]
[340806602,1729860728435,154.024,0.000154,15]
[340806603,1729861611136,-404.4878492,0.0001271,2]
[340806604,1729861611159,-8157.0905158,0.00013435,2]